bitfinex-derivatives/quotes_BNBF0:USTF0_20250326
["timestamp","ask_amount","ask_price","bid_price","bid_amount"]
[1742955872333,0.432,630.75,630.03,1.1877702]
[1742955872636,0.27603603,630.7,630.05,1.1877702]
[1742955873135,0.93003603,630.7,630.05,1.1877702]
[1742955875136,0.93003603,630.7,630.07,1.1877702]
[1742955875331,0.654,630.7,630.07,1.1877702]
[1742955875733,1.36203055,630.7,630.07,1.1877702]
[1742955878439,1.086,630.7,630.08,0.27135788]
[1742955878641,1.36203055,630.7,630.08,0.27135788]
[1742955879234,1.36203055,630.7,630.07,1.1877702]
[1742955879742,1.36203055,630.7,630.1,1.1877702]
[1742955881344,1.086,630.7,630.1,1.1877702]
[1742955881644,0.27603603,630.69,630.1,1.1877702]
[1742955882544,0.27603603,630.69,630.01,1.1877702]
[1742955883347,0.27603603,630.69,630.02,0.27137858]
[1742955883743,0.27603603,630.69,630.01,1.1877702]
[1742955884347,1.086,630.7,630.02,1.1877702]
[1742955884848,0.27604698,630.69,630.02,1.1877702]
[1742955886550,0.27604698,630.69,629.9,1.1877702]
[1742955887345,0.654,630.7,629.9,1.1877702]
[1742955888548,0.654,630.7,629.88,1.1877702]
[1742955888745,0.2760623,630.69,629.88,1.1877702]
[1742955890249,0.31703257,630.85,629.88,1.1877702]
[1742955890450,0.432,630.69,629.88,1.1877702]
[1742955890647,0.27604807,630.68,629.88,1.1877702]
[1742955890854,0.432,630.69,629.88,1.1877702]
[1742955891053,0.432,630.69,629.9,1.1877702]
[1742955891756,0.27604588,630.68,629.9,1.1877702]
[1742955893050,0.803,630.67,629.9,1.1877702]
[1742955893453,0.803,630.67,629.89,1.1877702]
[1742955894951,0.803,630.67,629.9,0.27137276]
[1742955896356,0.803,630.67,629.89,1.1877702]
[1742955896558,0.803,630.67,629.9,0.27137178]
[1742955897259,0.803,630.67,629.95,1.1877702]
[1742955899360,0.803,630.67,629.8,0.27604479]
[1742955899361,0.803,630.67,629.98,1.1877702]
[1742955903063,0.803,630.67,629.99,0.27136848]
[1742955903565,0.803,630.67,630.0,0.27136764]
[1742955903764,0.803,630.67,629.99,0.27136764]
[1742955903965,0.803,630.67,629.84,0.27603493]
[1742955903966,0.803,630.67,630.01,1.1877702]
[1742955904163,0.803,630.67,630.02,0.27136764]
[1742955905565,0.803,630.67,630.12,1.1877702]
[1742955907668,0.803,630.67,630.15,1.1877702]
[1742955910367,0.803,630.67,630.12,1.1877702]
[1742955911962,0.432,630.69,630.12,1.1877702]
[1742955914469,0.432,630.69,630.11,1.1877702]
[1742955915469,1.034,630.69,630.11,1.1877702]
[1742955917472,1.034,630.69,630.14,1.1877702]
[1742955918971,1.034,630.69,630.16,1.1877702]
[1742955921077,1.034,630.69,630.14,1.1877702]
[1742955923179,1.034,630.69,630.13,1.1877702]
[1742955924080,1.034,630.69,630.14,0.27129925]
[1742955926785,1.034,630.69,630.13,1.1877702]
[1742955928285,1.034,630.69,630.14,0.2713056]
[1742955930086,1.034,630.69,630.2,1.1877702]
[1742955930288,1.034,630.69,630.21,0.2713056]
[1742955931185,1.034,630.69,630.2,1.1877702]
[1742955931390,1.034,630.69,630.21,0.27130106]
[1742955933688,1.034,630.69,630.23,1.1877702]
[1742955933889,1.034,630.69,630.24,0.27130106]
[1742955934894,1.034,630.69,630.23,1.1877702]
[1742955935694,1.034,630.69,630.24,1.1877702]
[1742955938498,1.034,630.69,630.23,1.1877702]
[1742955941396,1.034,630.69,630.25,1.1877702]
[1742955944100,1.034,630.69,630.27,1.1877702]
[1742955946396,1.034,630.69,630.29,1.1877702]
[1742955948200,1.034,630.69,630.34,1.1877702]
[1742955950502,1.034,630.69,629.98,0.98208173]
[1742955950503,1.034,630.69,630.33,1.1877702]
[1742955954704,1.034,630.69,630.14,1.185948]
[1742955954705,1.034,630.69,630.32,1.1877702]
[1742955956200,1.034,630.69,630.31,1.1877702]
[1742955959002,1.034,630.69,630.26,1.1877702]
[1742955961308,1.034,630.69,629.86,0.27600209]
[1742955961309,1.034,630.69,630.23,1.1877702]
[1742955963711,1.034,630.69,630.17,1.1877702]
[1742955965910,1.034,630.69,630.18,1.1877702]
[1742955968111,1.034,630.69,630.19,1.1877702]
[1742955970616,1.034,630.69,630.14,1.1877702]
[1742955972522,1.034,630.69,630.16,1.1877702]
[1742955975024,1.034,630.69,630.17,1.1877702]
[1742955977626,1.034,630.69,629.84,1.1832752]
[1742955977627,1.034,630.69,630.12,1.1877702]
[1742955979342,1.034,630.69,630.16,1.1877702]
[1742955981431,1.034,630.69,630.18,1.1877702]
[1742955984332,1.034,630.69,630.14,1.1877702]
[1742955986234,1.034,630.69,630.15,0.27128809]
[1742955987129,1.034,630.69,630.14,1.1877702]
[1742955987330,1.034,630.69,630.15,0.2712852]
[1742955987734,1.034,630.69,630.2,1.1877702]
[1742955988034,1.034,630.69,630.21,0.2712852]
[1742955988735,1.034,630.69,630.2,1.1877702]
[1742955988935,1.034,630.69,630.21,0.27127595]
[1742955990235,1.034,630.69,630.3,1.1877702]
[1742955992331,1.034,630.69,630.26,1.1877702]
[1742955997445,1.034,630.69,630.24,1.1877702]
[1742955999347,1.034,630.69,630.03,1.46191507]
[1742955999348,1.034,630.69,630.23,1.1877702]
[1742956001644,1.034,630.69,630.25,1.1877702]
[1742956003653,1.034,630.69,630.27,1.1877702]
[1742956005455,1.034,630.69,630.28,0.27126844]
[1742956006155,1.034,630.69,630.27,1.1877702]
[1742956006357,1.034,630.69,630.28,0.27126845]
[1742956006756,1.034,630.69,630.29,1.1877702]
[1742956009258,1.034,630.69,630.32,1.1877702]
[1742956011458,1.034,630.69,630.14,1.185948]
[1742956011459,1.034,630.69,630.33,1.1877702]
[1742956014661,1.034,630.69,630.3,1.1877702]
[1742956017865,1.034,630.69,630.29,1.1877702]
[1742956020263,1.034,630.69,630.21,1.1877702]
[1742956023068,1.034,630.69,630.22,1.1877702]
[1742956025573,1.034,630.69,630.24,1.1877702]
[1742956027873,1.034,630.69,630.18,1.1877702]
[1742956029774,1.034,630.69,630.23,1.1877702]
[1742956032681,1.034,630.69,630.22,1.1877702]
[1742956034879,1.034,630.69,630.23,1.1877702]
[1742956036682,1.034,630.69,630.32,1.1877702]
[1742956038777,1.034,630.69,629.98,0.27596926]
[1742956038778,1.034,630.69,630.37,1.1877702]
[1742956041585,1.034,630.69,630.3,1.1877702]
[1742956044091,1.034,630.69,630.27,1.1877702]
[1742956046694,1.034,630.69,630.26,1.1877702]
[1742956048588,1.034,630.69,630.27,1.1877702]
[1742956050692,1.034,630.69,630.25,1.1877702]
[1742956052693,1.034,630.69,630.28,1.1877702]
[1742956054695,1.034,630.69,629.99,1.1877702]
[1742956058500,1.034,630.69,629.66,1.185948]
[1742956058501,1.034,630.69,629.88,1.1877702]
[1742956058700,1.034,630.69,629.89,0.27136543]
[1742956061106,1.034,630.69,629.98,1.1877702]
[1742956062809,1.31004369,630.69,629.98,1.1877702]
[1742956063310,1.31004369,630.69,629.95,1.1877702]
[1742956063509,1.31004369,630.69,629.96,0.27137673]
[1742956064511,1.034,630.69,629.96,0.27137673]
[1742956064811,1.31004698,630.69,629.96,0.27137673]
[1742956065913,1.31004698,630.69,629.97,1.1877702]
[1742956066113,1.31004698,630.69,629.98,0.27137673]
[1742956066611,1.31004698,630.69,629.97,1.1877702]
[1742956066807,1.31004698,630.69,629.98,0.27137196]
[1742956067316,1.31004698,630.69,629.99,0.27137307]
[1742956067515,1.034,630.69,629.98,0.27137307]
[1742956067713,1.31004479,630.69,629.99,0.27137307]
[1742956067907,1.31004479,630.69,630.0,0.27137307]
[1742956068108,1.31004479,630.69,629.98,0.27137307]
[1742956068315,1.31004479,630.69,630.01,0.27137307]
[1742956068514,1.31004479,630.69,630.02,0.27137307]
[1742956068715,1.31004479,630.69,629.97,0.27137307]
[1742956068915,1.31004479,630.69,629.98,0.27137307]
[1742956069115,1.31004479,630.69,629.99,0.27137307]
[1742956069317,1.31004479,630.69,629.97,0.27137307]
[1742956069514,1.31004479,630.69,629.98,0.27137307]
[1742956069713,1.31004479,630.69,629.99,0.27137307]
[1742956070015,1.31004479,630.69,630.0,0.27136979]
[1742956070213,1.31004479,630.69,629.81,0.27604479]
[1742956070214,1.31004479,630.69,630.04,1.1877702]
[1742956070516,1.034,630.69,630.05,0.27136979]
[1742956070915,1.31003712,630.69,630.05,0.27136979]
[1742956073316,1.31003712,630.69,630.03,1.1877702]
[1742956073317,1.31003712,630.69,630.04,0.27136979]
[1742956073517,1.034,630.69,630.05,0.27136979]
[1742956073720,1.034,630.69,630.03,1.1877702]
[1742956075019,1.31003931,630.69,630.03,1.1877702]
[1742956075416,1.31003931,630.69,629.81,0.27603822]
[1742956075417,1.31003931,630.69,629.98,1.1877702]
[1742956075614,1.31003931,630.69,629.99,0.27137397]
[1742956076413,1.034,630.69,629.99,0.27137397]
[1742956076615,1.034,630.69,630.0,0.27137736]
[1742956076813,1.034,630.69,629.99,0.27137736]
[1742956077013,1.034,630.69,630.0,0.27137736]
[1742956077213,1.034,630.69,630.01,0.27137736]
[1742956077414,1.034,630.69,629.99,0.27137736]
[1742956077614,1.034,630.69,630.0,0.27137736]
[1742956077819,0.27605026,630.68,629.99,0.27137736]
[1742956078118,0.27605026,630.68,630.0,0.27137736]
[1742956078416,0.27605026,630.68,630.01,0.27137736]
[1742956078621,0.27605026,630.68,629.99,0.27137736]
[1742956078822,0.27605026,630.68,630.0,0.27137736]
[1742956079022,0.27605026,630.68,630.01,0.27137736]
[1742956079222,0.27605026,630.68,630.02,0.27137736]
[1742956079424,0.27605026,630.68,629.99,0.27137736]
[1742956080524,0.433,630.67,629.99,1.45914756]
[1742956080826,1.019,630.66,630.0,0.27137736]
[1742956082019,1.019,630.66,629.99,1.1877702]
[1742956082222,1.019,630.66,630.0,0.27135776]
[1742956082929,1.019,630.66,630.01,1.1877702]
[1742956083730,1.019,630.66,630.02,0.27135852]
[1742956084628,1.019,630.66,630.01,1.1877702]
[1742956085832,0.27605245,630.65,630.01,1.1877702]
[1742956086129,0.27605245,630.65,629.77,0.27605245]
[1742956086130,0.27605245,630.65,630.04,1.1877702]
[1742956087828,0.27605245,630.65,630.07,1.1877702]
[1742956088532,1.019,630.66,630.07,1.1877702]
[1742956089730,0.27604588,630.65,630.07,1.1877702]
[1742956089926,0.27604588,630.65,630.12,1.1877702]
[1742956091430,1.019,630.66,630.12,1.1877702]
[1742956092832,0.27604041,630.65,630.12,1.1877702]
[1742956094927,0.27604041,630.65,630.17,1.1877702]
[1742956095731,0.433,630.64,630.17,1.1877702]
[1742956099530,0.433,630.64,630.15,1.1877702]
[1742956101436,0.433,630.64,630.16,1.1877702]
[1742956104838,0.433,630.64,630.14,1.1877702]
[1742956105934,0.917,630.63,630.14,1.1877702]
[1742956109147,0.917,630.63,630.15,1.1877702]
[1742956113447,0.917,630.63,630.16,1.1877702]
[1742956115849,0.917,630.63,630.17,1.1877702]
[1742956117253,0.433,630.62,630.17,1.1877702]
[1742956123066,0.433,630.62,630.18,1.1877702]
[1742956126466,0.433,630.62,630.23,1.1877702]
[1742956128769,0.433,630.62,630.25,1.1877702]
[1742956130370,0.917,630.63,630.25,1.1877702]
[1742956133273,0.917,630.63,630.22,1.1877702]
[1742956133867,3.01309192,631.56,630.22,1.1877702]
[1742956134070,0.31668619,631.54,630.22,1.1877702]
[1742956134268,0.29134931,631.53,630.22,1.1877702]
[1742956134468,0.31670123,631.51,630.22,1.1877702]
[1742956134773,0.29134931,631.5,630.22,1.1877702]
[1742956134973,0.31671628,631.48,630.22,1.1877702]
[1742956135167,0.29134931,631.47,630.22,1.1877702]
[1742956135366,0.31673133,631.45,630.22,1.1877702]
[1742956135571,0.29134931,631.44,630.22,1.1877702]
[1742956135773,0.31674638,631.42,630.22,1.1877702]
[1742956135969,0.29134931,631.41,630.22,1.1877702]
[1742956136274,0.31676143,631.39,630.22,1.1877702]
[1742956136474,0.29135163,631.38,630.22,1.1877702]
[1742956136774,0.31677648,631.36,630.22,1.1877702]
[1742956136974,0.29135163,631.35,630.22,1.1877702]
[1742956137174,0.31679153,631.33,630.22,1.1877702]
[1742956137371,0.29135163,631.32,630.23,1.1877702]
[1742956137674,0.31680658,631.3,630.23,1.1877702]
[1742956137877,0.29135163,631.29,630.23,1.1877702]
[1742956138078,0.31682164,631.27,630.23,1.1877702]
[1742956138276,0.29135163,631.26,630.23,1.1877702]
[1742956138477,0.3168367,631.24,630.23,1.1877702]
[1742956138672,0.29134993,631.23,630.23,1.1877702]
[1742956138871,0.31685176,631.21,630.23,1.1877702]
[1742956139070,0.29134993,631.2,630.23,1.1877702]
[1742956139272,0.31686682,631.18,630.23,1.1877702]
[1742956139475,0.29134607,631.17,630.23,1.1877702]
[1742956139673,0.31688188,631.15,630.22,1.1877702]
[1742956139872,0.29134607,631.14,630.22,1.1877702]
[1742956140071,0.31689694,631.12,630.22,1.1877702]
[1742956140271,0.29134607,631.11,630.22,1.1877702]
[1742956140475,0.316912,631.09,630.22,1.1877702]
[1742956140676,0.29134607,631.08,630.22,1.1877702]
[1742956140872,0.31692707,631.06,630.22,1.1877702]
[1742956141078,0.29134607,631.05,630.22,1.1877702]
[1742956141274,0.31693711,631.04,630.22,1.1877702]
[1742956141473,0.29134607,631.03,630.22,1.1877702]
[1742956141677,0.31694716,631.02,630.27,1.1877702]
[1742956141876,0.29135026,631.01,630.27,1.1877702]
[1742956142179,0.31695721,631.0,630.27,1.1877702]
[1742956142576,0.29135026,630.99,630.27,1.1877702]
[1742956142775,0.31696725,630.98,630.27,1.1877702]
[1742956142974,0.29135026,630.97,630.27,1.1877702]
[1742956143174,0.3169773,630.96,630.27,1.1877702]
[1742956143480,0.29135026,630.95,630.28,1.1877702]
[1742956143681,0.31698735,630.94,630.28,1.1877702]
[1742956147180,0.31698735,630.94,630.27,1.1877702]
[1742956148985,0.2759813,630.93,630.27,1.1877702]
[1742956149186,0.3169974,630.92,630.27,1.1877702]
[1742956152789,0.27593535,630.91,630.27,1.1877702]
[1742956153189,0.31700744,630.9,630.27,1.1877702]
[1742956155289,0.31700744,630.9,630.24,1.1877702]
[1742956155992,0.2759255,630.89,630.24,1.1877702]
[1742956156185,0.59293797,630.89,630.24,1.1877702]
[1742956156389,0.894,630.88,630.24,1.1877702]
[1742956157991,0.27599224,630.87,630.24,1.1877702]
[1742956158292,0.27599224,630.87,630.14,1.1877702]
[1742956160592,0.894,630.88,630.14,1.1877702]
[1742956160798,0.27600319,630.86,630.14,1.1877702]
[1742956162098,0.27600319,630.86,630.13,1.1877702]
[1742956163702,0.894,630.88,630.13,1.1877702]
[1742956164503,0.894,630.88,630.11,1.1877702]
[1742956164898,0.27600428,630.87,630.11,1.1877702]
[1742956166700,0.27600428,630.87,630.16,1.1877702]
[1742956167303,0.433,630.86,630.16,1.1877702]
[1742956170501,0.42621151,630.86,630.16,1.1877702]
[1742956170705,0.27599334,630.85,630.17,1.1877702]
[1742956172606,0.42621151,630.86,630.17,1.1877702]
[1742956173203,0.42621151,630.86,630.22,1.1877702]
[1742956173808,0.27598677,630.85,630.22,1.1877702]
[1742956174008,1.08698677,630.85,630.22,1.1877702]
[1742956175710,0.811,630.85,630.22,1.1877702]
[1742956175910,0.811,630.85,630.21,1.1877702]
[1742956176110,0.27599115,630.84,630.21,1.1877702]
[1742956178308,0.27599115,630.84,629.84,0.98298411]
[1742956178309,0.27599115,630.84,630.06,1.1877702]
[1742956181713,0.811,630.85,630.06,1.1877702]
[1742956182014,0.27600866,630.83,630.06,1.1877702]
[1742956184514,0.811,630.85,630.06,1.1877702]
[1742956184715,0.811,630.85,630.07,1.1877702]
[1742956185922,0.27600757,630.84,630.07,1.1877702]
[1742956186819,0.27600757,630.84,630.18,1.1877702]
[1742956189019,0.27600757,630.84,630.19,1.1877702]
[1742956191526,0.27600757,630.84,630.22,1.1877702]
[1742956193528,0.811,630.85,630.22,1.1877702]
[1742956193727,0.811,630.85,630.17,1.1877702]
[1742956194123,0.31701247,630.89,630.17,1.1877702]
[1742956194926,0.27590362,630.88,630.17,1.1877702]
[1742956196228,0.27590362,630.88,630.16,1.1877702]
[1742956196629,0.31701247,630.89,630.16,1.1877702]
[1742956197628,0.918,630.88,630.16,1.1877702]
[1742956197827,1.19397255,630.88,630.16,1.1877702]
[1742956198229,1.19397255,630.88,630.2,1.1877702]
[1742956199633,0.918,630.88,630.2,1.1877702]
[1742956200226,0.918,630.88,630.19,1.1877702]
[1742956200630,0.918,630.88,630.19,1.1724861]
[1742956200828,0.27599115,630.87,630.19,1.1724861]
[1742956201633,0.918,630.88,630.19,1.1724861]
[1742956202032,0.27599115,630.86,630.19,1.1724861]
[1742956202534,0.918,630.88,629.83,1.185948]
[1742956202734,0.918,630.88,629.84,0.27176025]
[1742956203532,0.918,630.88,629.85,0.27176059]
[1742956203730,0.918,630.88,629.84,0.27176059]
[1742956203930,0.27603055,630.87,629.85,0.27176059]
[1742956204132,0.27603055,630.87,629.86,0.27176059]
[1742956204335,0.27603055,630.87,629.87,0.27176059]
[1742956204635,0.27603055,630.87,629.88,0.27176059]
[1742956204830,0.27603055,630.87,629.89,0.27176059]
[1742956205029,0.27603055,630.87,629.85,1.185948]
[1742956205234,0.27603055,630.87,629.86,0.27176024]
[1742956205430,0.27603055,630.87,629.87,0.2717605]
[1742956205736,0.918,630.88,629.85,1.185948]
[1742956205934,0.918,630.88,629.86,0.2717605]
[1742956206736,0.918,630.88,629.86,1.185948]
[1742956207035,0.27603603,630.87,629.86,1.185948]
[1742956208636,0.918,630.88,629.86,1.185948]
[1742956209333,0.31702252,630.87,629.86,1.185948]
[1742956209533,0.31702252,630.87,629.71,1.185948]
[1742956209736,0.2760426,630.86,629.72,0.27176017]
[1742956209936,0.31703257,630.85,629.78,0.2760426]
[1742956210136,0.31703257,630.85,629.79,0.27176017]
[1742956211537,0.31703257,630.85,629.71,1.185948]
[1742956211738,0.31703257,630.85,629.72,0.27175307]
[1742956212037,0.31703257,630.85,629.76,1.185948]
[1742956212237,0.31703257,630.85,629.77,0.27175307]
[1742956212839,0.27602727,630.84,629.78,0.27602727]
[1742956213038,0.27602727,630.84,629.79,0.27172101]
[1742956214137,0.426,630.83,629.79,0.27172101]
[1742956214338,0.426,630.83,629.78,0.27602727]
[1742956214539,0.426,630.83,629.79,0.27172067]
[1742956214741,0.426,630.83,629.77,0.27172067]
[1742956214940,0.426,630.83,629.78,0.27172067]
[1742956215140,0.426,630.83,630.05,1.185948]
[1742956215341,0.426,630.83,630.06,0.27172067]
[1742956215835,0.426,630.83,630.05,1.185948]
[1742956215836,0.27599881,630.82,630.05,1.185948]
[1742956216039,0.27599881,630.82,630.06,0.2717199]
[1742956217638,0.426,630.83,630.06,0.2717199]
[1742956217939,0.276001,630.81,630.06,0.2717199]
[1742956218442,0.276001,630.81,630.07,0.2717199]
[1742956218640,0.276001,630.81,630.03,0.2717199]
[1742956218839,0.276001,630.81,630.04,0.2717199]
[1742956219039,0.276001,630.81,630.03,0.2717199]
[1742956219241,0.276001,630.81,630.04,0.2717199]
[1742956219440,0.276001,630.81,630.03,0.2717199]
[1742956219646,0.276001,630.81,630.04,0.2717199]
[1742956219843,0.276001,630.81,630.05,0.2717199]
[1742956220044,0.276001,630.81,630.06,0.2717199]
[1742956220244,0.276001,630.81,630.07,0.2717199]
[1742956220441,0.276001,630.81,630.03,0.2717199]
[1742956220646,0.426,630.83,630.04,0.2717199]
[1742956220845,0.426,630.83,630.05,0.2717199]
[1742956221041,0.426,630.83,630.03,0.2717199]
[1742956221241,0.426,630.83,630.04,1.4576679]
[1742956221439,0.426,630.83,630.05,0.2717199]
[1742956223741,0.426,630.83,630.05,1.4576679]
[1742956224041,0.426,630.83,630.06,0.2717199]
[1742956225344,0.426,630.83,630.05,1.185948]
[1742956225546,0.426,630.83,630.06,0.27169822]
[1742956226851,0.426,630.83,630.05,1.185948]
[1742956227151,0.426,630.83,630.06,0.27169441]
[1742956228251,0.426,630.83,630.07,0.27169441]
[1742956228453,0.426,630.83,629.9,0.27169441]
[1742956228653,0.426,630.83,629.91,0.27169441]
[1742956228848,0.426,630.83,629.92,0.27169441]
[1742956229051,0.426,630.83,629.9,0.27169441]
[1742956229252,0.426,630.83,629.91,0.27169441]
[1742956229450,0.426,630.83,629.92,0.27169441]
[1742956229650,0.426,630.83,629.9,0.27169441]
[1742956229856,0.426,630.83,629.91,0.27169441]
[1742956230047,0.426,630.83,629.89,1.185948]
[1742956230251,0.426,630.83,629.9,0.27169421]
[1742956230554,0.426,630.83,629.91,0.27169421]
[1742956230752,0.426,630.83,629.88,0.27169421]
[1742956230952,0.426,630.83,629.9,0.27599881]
[1742956231151,0.426,630.83,629.91,0.27169421]
[1742956231557,0.426,630.83,629.9,0.27599881]
[1742956231755,0.426,630.83,629.91,0.27169391]
[1742956232655,0.426,630.83,629.92,0.27169391]
[1742956232856,0.426,630.83,629.81,0.27169391]
[1742956233056,0.426,630.83,629.82,0.27169391]
[1742956233254,0.426,630.83,629.83,0.27169391]
[1742956233456,0.426,630.83,629.84,0.27169391]
[1742956233657,0.426,630.83,629.85,0.27169391]
[1742956233850,0.426,630.83,629.84,0.276001]
[1742956234052,0.426,630.83,629.85,0.27169391]
[1742956234950,0.426,630.83,629.84,1.461949]
[1742956234951,0.426,630.83,629.86,0.27166464]
[1742956235155,0.426,630.83,629.87,0.27166464]
[1742956235356,0.426,630.83,629.88,0.27166464]
[1742956235552,0.426,630.83,629.85,0.27166464]
[1742956235754,0.426,630.83,629.86,0.27166464]
[1742956235954,0.426,630.83,629.87,0.27166464]
[1742956236151,0.426,630.83,629.88,0.27166464]
[1742956236353,0.426,630.83,629.87,1.185948]
[1742956236552,0.426,630.83,629.88,0.27166579]
[1742956238054,0.426,630.83,629.89,0.27166341]
[1742956238253,0.426,630.83,629.9,0.27166341]
[1742956238455,0.426,630.83,629.91,0.27166341]
[1742956238656,0.426,630.83,629.92,0.27166341]
[1742956238856,0.426,630.83,629.93,1.45761141]
[1742956239053,0.426,630.83,629.94,0.27166341]
[1742956240659,0.426,630.83,629.93,1.185948]
[1742956241458,0.426,630.83,630.1,1.185948]
[1742956241754,0.982,630.84,630.1,1.185948]
[1742956242555,0.982,630.84,630.11,0.27166646]
[1742956244054,0.982,630.84,630.12,0.27166646]
[1742956244258,0.982,630.84,630.13,0.27166646]
[1742956244454,0.982,630.84,630.14,0.27166646]
[1742956244664,0.982,630.84,630.15,0.27166646]
[1742956244854,0.982,630.84,630.05,1.185948]
[1742956245054,0.982,630.84,630.06,0.27166721]
[1742956246558,0.982,630.84,630.07,0.27166721]
[1742956246859,0.982,630.84,630.08,0.27166721]
[1742956247060,0.982,630.84,630.0,0.27166721]
[1742956247360,0.982,630.84,630.01,0.27166721]
[1742956247560,0.982,630.84,630.02,0.27166721]
[1742956247860,0.982,630.84,630.03,0.27166637]
[1742956248061,0.982,630.84,630.0,0.2759813]
[1742956248260,0.982,630.84,630.01,0.27166637]
[1742956250860,0.982,630.84,629.96,1.185948]
[1742956250861,0.982,630.84,630.0,0.27598349]
[1742956251060,0.982,630.84,630.01,0.27167092]
[1742956252559,0.982,630.84,630.0,1.46193149]
[1742956252758,0.982,630.84,630.01,0.27168372]
[1742956252960,0.982,630.84,630.0,1.46193149]
[1742956253457,0.982,630.84,630.0,0.27598349]
[1742956253661,0.982,630.84,629.96,1.185948]
[1742956253863,0.276001,630.83,629.96,1.185948]
[1742956256566,0.982,630.84,629.75,1.185948]
[1742956256866,0.982,630.84,629.81,0.27602946]
[1742956257066,0.982,630.84,629.82,0.27175682]
[1742956257868,0.27605245,630.83,629.82,0.27175682]
[1742956258868,0.27605245,630.83,629.81,0.27602946]
[1742956259070,0.27605245,630.83,629.82,0.27175614]
[1742956259566,0.31703257,630.85,629.82,0.27175614]
[1742956259770,0.31703257,630.85,629.65,0.27175614]
[1742956259966,0.2760634,630.82,629.81,0.2760634]
[1742956260169,0.2760634,630.82,629.82,0.27175614]
[1742956260370,0.2760634,630.82,629.65,0.27175614]
[1742956260570,0.2760634,630.82,629.66,0.27175747]
[1742956260769,0.2760634,630.82,629.65,1.45770547]
[1742956260967,0.2760634,630.82,629.66,0.54782306]
[1742956261172,0.2760634,630.82,629.67,0.27175747]
[1742956261769,0.31705267,630.81,629.66,0.27606559]
[1742956262167,1.134,630.8,629.66,0.27606559]
[1742956262366,1.4510577,630.8,629.67,0.27181425]
[1742956262770,0.31706273,630.79,629.66,0.27181425]
[1742956262970,0.31706273,630.79,629.67,0.27181425]
[1742956263171,0.31706273,630.79,629.66,0.27181425]
[1742956263774,0.27609078,630.78,629.66,0.27181425]
[1742956263970,0.27609078,630.78,629.66,0.27609078]
[1742956264171,0.27609078,630.78,629.67,0.27181425]
[1742956264769,0.27609078,630.78,629.68,0.2718247]
[1742956264973,0.27609078,630.78,629.67,0.2718247]
[1742956265174,0.31707278,630.77,629.68,0.2718247]
[1742956265367,0.75907278,630.77,629.69,0.2718247]
[1742956265568,0.75907278,630.77,629.7,0.2718247]
[1742956265768,0.75907278,630.77,629.71,0.2718247]
[1742956265974,0.75907278,630.77,629.72,0.2718247]
[1742956266175,0.75907278,630.77,629.73,0.2718247]
[1742956266476,0.75907278,630.77,629.74,0.2718296]
[1742956266775,0.75907278,630.77,629.75,0.2718296]
[1742956266967,0.75907278,630.77,629.76,0.2718296]
[1742956267169,0.75907278,630.77,629.67,0.2718296]
[1742956267971,0.75907278,630.77,629.68,0.27184706]
[1742956268177,0.75907278,630.77,629.67,0.27184706]
[1742956268371,0.75907278,630.77,629.43,1.185948]
[1742956268575,0.75907278,630.77,629.57,0.27614774]
[1742956268777,0.75907278,630.77,629.58,0.2718706]
[1742956269183,0.75907278,630.77,629.59,0.2718706]
[1742956269484,0.75907278,630.77,629.34,1.185948]
[1742956269783,0.27614774,630.76,629.57,0.27614774]
[1742956269983,0.31708283,630.75,629.58,0.27186939]
[1742956270379,0.31708283,630.75,629.35,0.27186939]
[1742956271681,0.31708283,630.75,629.36,0.2761587]
[1742956271881,0.31708283,630.75,629.37,0.27186939]
[1742956274787,0.31708283,630.75,629.38,0.27186939]
[1742956274989,0.31708283,630.75,629.39,0.27186939]
[1742956275188,0.31708283,630.75,629.35,0.27186939]
[1742956275389,0.31708283,630.75,629.36,0.27186939]
[1742956275589,0.31708283,630.75,629.37,0.27186939]
[1742956275785,0.2761576,630.74,629.36,0.2761576]
[1742956275986,0.31709289,630.73,629.37,0.27186939]
[1742956276387,0.31709289,630.73,629.38,0.31777304]
[1742956276699,0.31709289,630.73,629.39,0.27186939]
[1742956277491,0.31709289,630.73,629.39,0.58963738]
[1742956277694,0.31709289,630.73,629.4,0.27186939]
[1742956278787,0.27614117,630.72,629.4,0.27186939]